[Event "Titled Tuesday Blitz May 23 Late 2023"]
[White "Safin, Robert"]
[Black "Svane, Rasmus"]
[WhiteFideId "34189120"]
[BlackFideId "4657101"]
[WhiteElo "2295"]
[BlackElo "2601"]
[Result "0-1"]
[Round "06"]
[TimeControl "180+2"]
[Date "2023.05.23"]
[WhiteClock "0:00:00"]
[BlackClock "0:00:18"]

1. e4 {[%clk 0:03:00]}  c6 {[%clk 0:03:00]} 2. d4 {[%clk 0:03:00]}  d5 {[%clk 0:03:01]} 3. Nc3 {[%clk 0:02:58]}  dxe4 {[%clk 0:03:01]} 4. Nxe4 {[%clk 0:02:58]}  Nf6 {[%clk 0:03:02]} 5. Nxf6+ {[%clk 0:02:56]}  exf6 {[%clk 0:03:03]} 6. Bd3 {[%clk 0:02:52]}  Bd6 {[%clk 0:03:03]} 7. c3 {[%clk 0:02:49]}  O-O {[%clk 0:03:03]} 8. Ne2 {[%clk 0:02:49]}  Re8 {[%clk 0:03:04]} 9. O-O {[%clk 0:02:47]}  Nd7 {[%clk 0:03:04]} 10. Bf4 {[%clk 0:02:43]}  Nf8 {[%clk 0:03:04]} 11. Qd2 {[%clk 0:02:36]}  Ng6 {[%clk 0:03:02]} 12. Bxd6 {[%clk 0:02:33]}  Qxd6 {[%clk 0:03:02]} 13. Rfe1 {[%clk 0:02:33]}  Bd7 {[%clk 0:03:02]} 14. Ng3 {[%clk 0:02:26]}  Qf4 {[%clk 0:02:48]} 15. Qc2 {[%clk 0:01:32]}  Rad8 {[%clk 0:02:34]} 16. Nf1 {[%clk 0:01:26]}  Qg5 {[%clk 0:02:21]} 17. Qd2 {[%clk 0:01:14]}  Nf4 {[%clk 0:02:19]} 18. g3 {[%clk 0:01:10]}  Nh3+ {[%clk 0:01:44]} 19. Kg2 {[%clk 0:01:10]}  Qd5+ {[%clk 0:01:45]} 20. f3 {[%clk 0:01:08]}  Ng5 {[%clk 0:01:45]} 21. Qf4 {[%clk 0:00:54]}  Bh3+ {[%clk 0:01:18]} 22. Kf2 {[%clk 0:00:53]}  Bxf1 {[%clk 0:01:18]} 23. Bxf1 {[%clk 0:00:51]}  c5 {[%clk 0:01:12]} 24. dxc5 {[%clk 0:00:31]}  Qxc5+ {[%clk 0:01:08]} 25. Kg2 {[%clk 0:00:31]}  Qb6 {[%clk 0:01:08]} 26. b3 {[%clk 0:00:20]}  Qc6 {[%clk 0:01:02]} 27. c4 {[%clk 0:00:15]}  h5 {[%clk 0:00:55]} 28. h4 {[%clk 0:00:14]}  Ne6 {[%clk 0:00:34]} 29. Qe3 {[%clk 0:00:10]}  Nd4 {[%clk 0:00:33]} 30. Qf2 {[%clk 0:00:10]}  Nf5 {[%clk 0:00:26]} 31. Rxe8+ {[%clk 0:00:07]}  Rxe8 {[%clk 0:00:27]} 32. Re1 {[%clk 0:00:07]}  Rd8 {[%clk 0:00:25]} 33. Qe2 {[%clk 0:00:04]}  Qc7 {[%clk 0:00:22]} 34. f4 {[%clk 0:00:03]}  g6 {[%clk 0:00:19]} 35. Qf2 {[%clk 0:00:01]}  Kg7 {[%clk 0:00:19]} 36. Be2 {[%clk 0:00:00]}  Rd2 {[%clk 0:00:18]} 0-1


[Site "https://www.chess.com"]

[Event "Titled Tuesday Blitz May 23 Late 2023"]
[White "Hasangatin, Ramil"]
[Black "Filipascu"]
[WhiteFideId "4122160"]
[WhiteElo "2279"]
[BlackElo "2578"]
[Result "0-1"]
[Round "06"]
[TimeControl "180+2"]
[Date "2023.05.23"]
[WhiteClock "0:00:00"]
[BlackClock "0:01:26"]

1. e4 {[%clk 0:03:00]}  c5 {[%clk 0:02:59]} 2. Nf3 {[%clk 0:03:01]}  d6 {[%clk 0:03:00]} 3. d4 {[%clk 0:03:00]}  cxd4 {[%clk 0:03:01]} 4. Qxd4 {[%clk 0:03:01]}  Nf6 {[%clk 0:03:01]} 5. e5 {[%clk 0:03:01]}  Nc6 {[%clk 0:03:01]} 6. Bb5 {[%clk 0:03:01]}  Qa5+ {[%clk 0:03:01]} 7. Nc3 {[%clk 0:03:01]}  Qxb5 {[%clk 0:03:02]} 8. Nxb5 {[%clk 0:03:02]}  Nxd4 {[%clk 0:03:03]} 9. Nfxd4 {[%clk 0:03:03]}  dxe5 {[%clk 0:03:03]} 10. Nc7+ {[%clk 0:03:03]}  Kd7 {[%clk 0:03:04]} 11. Nxa8 {[%clk 0:03:04]}  exd4 {[%clk 0:03:05]} 12. Bf4 {[%clk 0:03:04]}  e5 {[%clk 0:03:05]} 13. Bxe5 {[%clk 0:03:04]}  Bd6 {[%clk 0:03:01]} 14. Bxd4 {[%clk 0:02:26]}  Kc6 {[%clk 0:02:47]} 15. O-O-O {[%clk 0:01:50]}  Be6 {[%clk 0:02:42]} 16. Rd3 {[%clk 0:01:12]}  Rxa8 {[%clk 0:02:37]} 17. Rc3+ {[%clk 0:01:06]}  Kd7 {[%clk 0:02:37]} 18. Rd1 {[%clk 0:01:05]}  Ke7 {[%clk 0:02:25]} 19. Bc5 {[%clk 0:00:56]}  Bxc5 {[%clk 0:02:25]} 20. Rxc5 {[%clk 0:00:57]}  Rc8 {[%clk 0:02:26]} 21. Rxc8 {[%clk 0:00:52]}  Bxc8 {[%clk 0:02:26]} 22. Kd2 {[%clk 0:00:48]}  Be6 {[%clk 0:02:25]} 23. f3 {[%clk 0:00:45]}  Kd6 {[%clk 0:02:24]} 24. Ke3+ {[%clk 0:00:43]}  Kc5 {[%clk 0:02:24]} 25. a3 {[%clk 0:00:38]}  Nd5+ {[%clk 0:02:23]} 26. Kf2 {[%clk 0:00:36]}  a5 {[%clk 0:02:22]} 27. h4 {[%clk 0:00:30]}  h5 {[%clk 0:02:20]} 28. g3 {[%clk 0:00:23]}  g6 {[%clk 0:02:21]} 29. Ke2 {[%clk 0:00:20]}  a4 {[%clk 0:02:19]} 30. Kd2 {[%clk 0:00:21]}  Bf5 {[%clk 0:02:14]} 31. Re1 {[%clk 0:00:21]}  Be6 {[%clk 0:02:09]} 32. Re4 {[%clk 0:00:20]}  b5 {[%clk 0:02:09]} 33. Re1 {[%clk 0:00:19]}  Nb6 {[%clk 0:02:09]} 34. Kc3 {[%clk 0:00:18]}  Nd5+ {[%clk 0:02:09]} 35. Kd2 {[%clk 0:00:18]}  Ne7 {[%clk 0:01:58]} 36. Re5+ {[%clk 0:00:17]}  Nd5 {[%clk 0:01:54]} 37. Re4 {[%clk 0:00:14]}  Kc6 {[%clk 0:01:52]} 38. c4 {[%clk 0:00:11]}  bxc4 {[%clk 0:01:39]} 39. Rxc4+ {[%clk 0:00:12]}  Kb5 {[%clk 0:01:40]} 40. Rc1 {[%clk 0:00:09]}  Ne7 {[%clk 0:01:37]} 41. Ke3 {[%clk 0:00:08]}  Nd5+ {[%clk 0:01:34]} 42. Kd4 {[%clk 0:00:08]}  Ne7 {[%clk 0:01:31]} 43. Ke5 {[%clk 0:00:08]}  Nf5 {[%clk 0:01:32]} 44. Kf4 {[%clk 0:00:07]}  Nd4 {[%clk 0:01:31]} 45. Rc7 {[%clk 0:00:05]}  Ne2+ {[%clk 0:01:30]} 46. Ke5 {[%clk 0:00:04]}  Nxg3 {[%clk 0:01:30]} 47. Rb7+ {[%clk 0:00:03]}  Ka6 {[%clk 0:01:31]} 48. Rb4 {[%clk 0:00:03]}  Bb3 {[%clk 0:01:31]} 49. Kf6 {[%clk 0:00:00]}  Nf5 {[%clk 0:01:26]} 0-1


[Site "https://www.chess.com"]

[Event "Titled Tuesday Blitz May 23 Late 2023"]
[White "Guerra Tulcan, Lenin"]
[Black "Williams, Simon K"]
[WhiteFideId "3601382"]
[BlackFideId "404454"]
[WhiteElo "2368"]
[BlackElo "2468"]
[Result "0-1"]
[Round "06"]
[TimeControl "180+2"]
[Date "2023.05.23"]
[WhiteClock "0:00:03"]
[BlackClock "0:00:37"]

1. e4 {[%clk 0:03:00]}  g6 {[%clk 0:02:58]} 2. d4 {[%clk 0:03:00]}  Bg7 {[%clk 0:02:58]} 3. Nf3 {[%clk 0:03:01]}  d6 {[%clk 0:02:58]} 4. Nc3 {[%clk 0:03:01]}  a6 {[%clk 0:02:57]} 5. a4 {[%clk 0:03:01]}  b6 {[%clk 0:02:57]} 6. Be2 {[%clk 0:02:56]}  e6 {[%clk 0:02:56]} 7. O-O {[%clk 0:02:56]}  Ne7 {[%clk 0:02:56]} 8. Re1 {[%clk 0:02:52]}  Bb7 {[%clk 0:02:54]} 9. Bf1 {[%clk 0:02:52]}  O-O {[%clk 0:02:54]} 10. Bg5 {[%clk 0:02:48]}  h6 {[%clk 0:02:53]} 11. Be3 {[%clk 0:02:47]}  Nd7 {[%clk 0:02:52]} 12. Qd2 {[%clk 0:02:44]}  Kh7 {[%clk 0:02:52]} 13. Rad1 {[%clk 0:02:42]}  Nf6 {[%clk 0:02:46]} 14. Bf4 {[%clk 0:02:23]}  Nh5 {[%clk 0:02:36]} 15. h3 {[%clk 0:01:59]}  Nxf4 {[%clk 0:02:35]} 16. Qxf4 {[%clk 0:02:00]}  g5 {[%clk 0:02:28]} 17. Qe3 {[%clk 0:01:55]}  Ng6 {[%clk 0:02:28]} 18. e5 {[%clk 0:01:51]}  Bxf3 {[%clk 0:02:20]} 19. Qxf3 {[%clk 0:01:48]}  dxe5 {[%clk 0:02:20]} 20. dxe5 {[%clk 0:01:46]}  Qe7 {[%clk 0:02:19]} 21. Bd3 {[%clk 0:01:43]}  Kg8 {[%clk 0:02:17]} 22. Bxg6 {[%clk 0:01:37]}  fxg6 {[%clk 0:02:18]} 23. Qc6 {[%clk 0:01:34]}  Rad8 {[%clk 0:02:12]} 24. Qc4 {[%clk 0:01:04]}  Rxd1 {[%clk 0:01:57]} 25. Nxd1 {[%clk 0:01:01]}  Qc5 {[%clk 0:01:48]} 26. Qxc5 {[%clk 0:00:54]}  bxc5 {[%clk 0:01:48]} 27. b3 {[%clk 0:00:46]}  Rd8 {[%clk 0:01:37]} 28. Kf1 {[%clk 0:00:39]}  Rd2 {[%clk 0:01:34]} 29. Ne3 {[%clk 0:00:39]}  Kf7 {[%clk 0:01:28]} 30. Re2 {[%clk 0:00:38]}  Rxe2 {[%clk 0:01:23]} 31. Kxe2 {[%clk 0:00:39]}  Bxe5 {[%clk 0:01:23]} 32. Nc4 {[%clk 0:00:40]}  Bd4 {[%clk 0:01:21]} 33. f3 {[%clk 0:00:30]}  Kf6 {[%clk 0:01:21]} 34. g4 {[%clk 0:00:30]}  Ke7 {[%clk 0:01:11]} 35. Kd3 {[%clk 0:00:30]}  Kd7 {[%clk 0:01:11]} 36. Nd2 {[%clk 0:00:26]}  Kc6 {[%clk 0:01:10]} 37. Kc4 {[%clk 0:00:24]}  Kd6 {[%clk 0:01:08]} 38. c3 {[%clk 0:00:21]}  Be3 {[%clk 0:01:03]} 39. Ne4+ {[%clk 0:00:21]}  Ke5 {[%clk 0:00:53]} 40. b4 {[%clk 0:00:07]}  cxb4 {[%clk 0:00:53]} 41. cxb4 {[%clk 0:00:07]}  Kf4 {[%clk 0:00:52]} 42. b5 {[%clk 0:00:08]}  axb5+ {[%clk 0:00:52]} 43. Kxb5 {[%clk 0:00:08]}  Ba7 {[%clk 0:00:45]} 44. Nc5 {[%clk 0:00:08]}  e5 {[%clk 0:00:44]} 45. Ne6+ {[%clk 0:00:06]}  Kxf3 {[%clk 0:00:44]} 46. Nxc7 {[%clk 0:00:06]}  e4 {[%clk 0:00:44]} 47. Ka6 {[%clk 0:00:03]}  e3 {[%clk 0:00:37]} 0-1


[Site "https://www.chess.com"]

[Event "Titled Tuesday Blitz May 23 Late 2023"]
[White "Fridman, Daniel"]
[Black "Filgueira, Hernan"]
[WhiteFideId "11600454"]
[BlackFideId "101770"]
[WhiteElo "2525"]
[BlackElo "2363"]
[Result "0-1"]
[Round "06"]
[TimeControl "180+2"]
[Date "2023.05.23"]
[WhiteClock "0:00:00"]
[BlackClock "0:00:08"]

1. d4 {[%clk 0:02:55]}  d5 {[%clk 0:02:58]} 2. Nf3 {[%clk 0:02:56]}  e6 {[%clk 0:02:56]} 3. c4 {[%clk 0:02:56]}  c6 {[%clk 0:02:55]} 4. g3 {[%clk 0:02:55]}  Nf6 {[%clk 0:02:51]} 5. Bg2 {[%clk 0:02:56]}  Bb4+ {[%clk 0:02:50]} 6. Bd2 {[%clk 0:02:56]}  Be7 {[%clk 0:02:48]} 7. O-O {[%clk 0:02:55]}  O-O {[%clk 0:02:47]} 8. Qb3 {[%clk 0:02:55]}  Nbd7 {[%clk 0:02:46]} 9. Rc1 {[%clk 0:02:55]}  Ne4 {[%clk 0:02:41]} 10. Be3 {[%clk 0:02:53]}  f5 {[%clk 0:02:40]} 11. Nc3 {[%clk 0:02:49]}  Kh8 {[%clk 0:02:38]} 12. Bf4 {[%clk 0:02:46]}  g5 {[%clk 0:02:33]} 13. Be5+ {[%clk 0:02:44]}  Kg8 {[%clk 0:02:26]} 14. cxd5 {[%clk 0:02:31]}  exd5 {[%clk 0:02:24]} 15. Bc7 {[%clk 0:01:52]}  Qe8 {[%clk 0:02:17]} 16. Ne5 {[%clk 0:01:52]}  Nxe5 {[%clk 0:01:42]} 17. Bxe5 {[%clk 0:01:51]}  Qf7 {[%clk 0:01:40]} 18. f3 {[%clk 0:01:33]}  Nd2 {[%clk 0:01:38]} 19. Qc2 {[%clk 0:01:25]}  Nc4 {[%clk 0:01:37]} 20. f4 {[%clk 0:01:24]}  Nxe5 {[%clk 0:01:31]} 21. dxe5 {[%clk 0:01:22]}  gxf4 {[%clk 0:01:31]} 22. gxf4 {[%clk 0:01:21]}  Kh8 {[%clk 0:01:28]} 23. e3 {[%clk 0:01:15]}  Rg8 {[%clk 0:01:23]} 24. Qf2 {[%clk 0:01:15]}  Be6 {[%clk 0:01:16]} 25. Ne2 {[%clk 0:01:13]}  Rg4 {[%clk 0:01:11]} 26. Kh1 {[%clk 0:01:11]}  Bh4 {[%clk 0:01:09]} 27. Qf3 {[%clk 0:01:08]}  Rag8 {[%clk 0:01:05]} 28. Bh3 {[%clk 0:01:01]}  R4g7 {[%clk 0:01:03]} 29. Nd4 {[%clk 0:00:57]}  Bc8 {[%clk 0:01:01]} 30. b4 {[%clk 0:00:53]}  a6 {[%clk 0:01:00]} 31. Rg1 {[%clk 0:00:52]}  Be7 {[%clk 0:00:43]} 32. a3 {[%clk 0:00:45]}  a5 {[%clk 0:00:41]} 33. Rxg7 {[%clk 0:00:43]}  Rxg7 {[%clk 0:00:38]} 34. bxa5 {[%clk 0:00:41]}  c5 {[%clk 0:00:36]} 35. Nb5 {[%clk 0:00:31]}  Bd7 {[%clk 0:00:32]} 36. Nc7 {[%clk 0:00:20]}  Bc6 {[%clk 0:00:29]} 37. e6 {[%clk 0:00:20]}  Qf6 {[%clk 0:00:28]} 38. Re1 {[%clk 0:00:11]}  d4 {[%clk 0:00:26]} 39. Nd5 {[%clk 0:00:07]}  Qxe6 {[%clk 0:00:25]} 40. e4 {[%clk 0:00:08]}  Bxd5 {[%clk 0:00:13]} 41. Bxf5 {[%clk 0:00:06]}  Qf7 {[%clk 0:00:14]} 42. exd5 {[%clk 0:00:05]}  Qxf5 {[%clk 0:00:14]} 43. d6 {[%clk 0:00:06]}  Bxd6 {[%clk 0:00:14]} 44. Re8+ {[%clk 0:00:06]}  Rg8 {[%clk 0:00:14]} 45. Rxg8+ {[%clk 0:00:06]}  Kxg8 {[%clk 0:00:15]} 46. Qxb7 {[%clk 0:00:07]}  Qb1+ {[%clk 0:00:13]} 47. Kg2 {[%clk 0:00:06]}  Qc2+ {[%clk 0:00:13]} 48. Kf3 {[%clk 0:00:06]}  Qd3+ {[%clk 0:00:13]} 49. Kg4 {[%clk 0:00:06]}  Qg6+ {[%clk 0:00:13]} 50. Kf3 {[%clk 0:00:06]}  Qh5+ {[%clk 0:00:13]} 51. Ke4 {[%clk 0:00:06]}  Qe8+ {[%clk 0:00:11]} 52. Kd5 {[%clk 0:00:06]}  Bf8 {[%clk 0:00:11]} 53. a6 {[%clk 0:00:05]}  d3 {[%clk 0:00:11]} 54. Kc4 {[%clk 0:00:04]}  d2 {[%clk 0:00:09]} 55. Qd5+ {[%clk 0:00:04]}  Qf7 {[%clk 0:00:09]} 56. Qxf7+ {[%clk 0:00:02]}  Kxf7 {[%clk 0:00:09]} 57. a7 {[%clk 0:00:03]}  d1=Q {[%clk 0:00:09]} 58. a8=Q {[%clk 0:00:04]}  Qd4+ {[%clk 0:00:09]} 59. Kb5 {[%clk 0:00:04]}  Qb2+ {[%clk 0:00:08]} 60. Kc4 {[%clk 0:00:03]}  Qc2+ {[%clk 0:00:08]} 61. Kb5 {[%clk 0:00:00]}  Qb3+ {[%clk 0:00:08]} 0-1


[Site "https://www.chess.com"]

[Event "Titled Tuesday Blitz May 23 Late 2023"]
[White "Kiremitciyan, Ari"]
[Black "Licznerski, Lukasz"]
[WhiteFideId "6373445"]
[BlackFideId "1179250"]
[WhiteElo "2181"]
[BlackElo "2453"]
[Result "0-1"]
[Round "06"]
[TimeControl "180+2"]
[Date "2023.05.23"]
[WhiteClock "0:00:00"]
[BlackClock "0:00:06"]

1. e4 {[%clk 0:03:00]}  c6 {[%clk 0:01:29]} 2. d4 {[%clk 0:02:59]}  d5 {[%clk 0:01:30]} 3. exd5 {[%clk 0:02:59]}  cxd5 {[%clk 0:01:24]} 4. Bd3 {[%clk 0:02:59]}  Nc6 {[%clk 0:01:24]} 5. c3 {[%clk 0:03:00]}  Nf6 {[%clk 0:01:25]} 6. Bf4 {[%clk 0:03:00]}  Bg4 {[%clk 0:01:26]} 7. Qb3 {[%clk 0:03:01]}  Qc8 {[%clk 0:01:26]} 8. Nd2 {[%clk 0:03:01]}  e6 {[%clk 0:01:27]} 9. Ngf3 {[%clk 0:03:01]}  Be7 {[%clk 0:01:28]} 10. O-O {[%clk 0:03:02]}  Bh5 {[%clk 0:01:28]} 11. Rae1 {[%clk 0:03:02]}  Bg6 {[%clk 0:01:29]} 12. Be2 {[%clk 0:02:56]}  O-O {[%clk 0:01:28]} 13. Nh4 {[%clk 0:02:50]}  Bh5 {[%clk 0:01:19]} 14. Nhf3 {[%clk 0:02:41]}  a6 {[%clk 0:01:18]} 15. Qd1 {[%clk 0:02:39]}  b5 {[%clk 0:01:18]} 16. a3 {[%clk 0:02:36]}  Qb7 {[%clk 0:01:16]} 17. h3 {[%clk 0:02:33]}  Rfc8 {[%clk 0:01:16]} 18. g4 {[%clk 0:02:33]}  Bg6 {[%clk 0:01:16]} 19. Nh4 {[%clk 0:02:29]}  a5 {[%clk 0:01:11]} 20. Nxg6 {[%clk 0:02:29]}  hxg6 {[%clk 0:01:11]} 21. Be3 {[%clk 0:02:08]}  b4 {[%clk 0:01:05]} 22. cxb4 {[%clk 0:02:09]}  axb4 {[%clk 0:01:06]} 23. a4 {[%clk 0:02:10]}  b3 {[%clk 0:01:02]} 24. Bb5 {[%clk 0:02:04]}  Na7 {[%clk 0:00:57]} 25. Qxb3 {[%clk 0:01:59]}  Nxb5 {[%clk 0:00:56]} 26. axb5 {[%clk 0:01:56]}  Ra5 {[%clk 0:00:45]} 27. Rc1 {[%clk 0:01:32]}  Rxc1 {[%clk 0:00:43]} 28. Rxc1 {[%clk 0:01:33]}  Rxb5 {[%clk 0:00:44]} 29. Rc8+ {[%clk 0:01:01]}  Kh7 {[%clk 0:00:33]} 30. Nf3 {[%clk 0:00:42]}  Ne4 {[%clk 0:00:29]} 31. Qc2 {[%clk 0:00:35]}  Rxb2 {[%clk 0:00:28]} 32. Rc7 {[%clk 0:00:19]}  Qb6 {[%clk 0:00:15]} 33. Qc6 {[%clk 0:00:08]}  Qxc6 {[%clk 0:00:15]} 34. Rxc6 {[%clk 0:00:09]}  Rb7 {[%clk 0:00:15]} 35. Ne5 {[%clk 0:00:08]}  Bf6 {[%clk 0:00:11]} 36. Nd3 {[%clk 0:00:07]}  g5 {[%clk 0:00:07]} 37. Nc5 {[%clk 0:00:04]}  Nxc5 {[%clk 0:00:07]} 38. Rxc5 {[%clk 0:00:03]}  Rb4 {[%clk 0:00:06]} 39. Rc7 {[%clk 0:00:03]}  Kg6 {[%clk 0:00:06]} 40. Rc8 {[%clk 0:00:00]}  Bxd4 {[%clk 0:00:06]} 0-1


[Site "https://www.chess.com"]

[Event "Titled Tuesday Blitz May 23 Late 2023"]
[White "Veiga, Jose Francisco R P Neves"]
[Black "Mahdavi, Reza"]
[WhiteFideId "1930087"]
[BlackFideId "12595926"]
[WhiteElo "2320"]
[BlackElo "2352"]
[Result "0-1"]
[Round "06"]
[TimeControl "180+2"]
[Date "2023.05.23"]
[WhiteClock "0:00:11"]
[BlackClock "0:00:17"]

1. e4 {[%clk 0:03:00]}  c5 {[%clk 0:02:58]} 2. Nf3 {[%clk 0:03:00]}  d6 {[%clk 0:02:58]} 3. d4 {[%clk 0:03:01]}  cxd4 {[%clk 0:02:59]} 4. Nxd4 {[%clk 0:03:01]}  Nf6 {[%clk 0:03:00]} 5. Nc3 {[%clk 0:03:02]}  g6 {[%clk 0:03:01]} 6. Be3 {[%clk 0:02:56]}  Bg7 {[%clk 0:02:56]} 7. f3 {[%clk 0:02:56]}  O-O {[%clk 0:02:57]} 8. Qd2 {[%clk 0:02:57]}  Nc6 {[%clk 0:02:57]} 9. O-O-O {[%clk 0:02:57]}  d5 {[%clk 0:02:58]} 10. Qe1 {[%clk 0:02:57]}  e5 {[%clk 0:02:55]} 11. Nxc6 {[%clk 0:02:58]}  bxc6 {[%clk 0:02:55]} 12. exd5 {[%clk 0:02:56]}  Nxd5 {[%clk 0:02:49]} 13. Bc4 {[%clk 0:02:55]}  Be6 {[%clk 0:02:40]} 14. Ne4 {[%clk 0:02:55]}  Re8 {[%clk 0:02:19]} 15. Bc5 {[%clk 0:02:52]}  Qc7 {[%clk 0:02:17]} 16. h4 {[%clk 0:02:49]}  h6 {[%clk 0:01:43]} 17. g4 {[%clk 0:02:35]}  Red8 {[%clk 0:01:44]} 18. h5 {[%clk 0:02:31]}  f5 {[%clk 0:01:43]} 19. Ng3 {[%clk 0:01:49]}  f4 {[%clk 0:01:37]} 20. Ne4 {[%clk 0:01:43]}  g5 {[%clk 0:01:38]} 21. Nc3 {[%clk 0:01:34]}  Qf7 {[%clk 0:01:34]} 22. Bb3 {[%clk 0:01:30]}  Nxc3 {[%clk 0:01:28]} 23. Qxc3 {[%clk 0:01:30]}  e4 {[%clk 0:01:28]} 24. Rxd8+ {[%clk 0:01:30]}  Rxd8 {[%clk 0:01:28]} 25. Qa5 {[%clk 0:01:30]}  Rd7 {[%clk 0:01:24]} 26. fxe4 {[%clk 0:01:19]}  f3 {[%clk 0:01:23]} 27. Rf1 {[%clk 0:01:12]}  Kh7 {[%clk 0:00:54]} 28. Qe1 {[%clk 0:01:04]}  Qf4+ {[%clk 0:00:38]} 29. Qe3 {[%clk 0:01:04]}  Qxe3+ {[%clk 0:00:34]} 30. Bxe3 {[%clk 0:01:03]}  Bxg4 {[%clk 0:00:35]} 31. Rh1 {[%clk 0:00:53]}  Re7 {[%clk 0:00:32]} 32. Kd2 {[%clk 0:00:50]}  Rxe4 {[%clk 0:00:32]} 33. Bxa7 {[%clk 0:00:50]}  Re2+ {[%clk 0:00:29]} 34. Kd3 {[%clk 0:00:31]}  Bf5+ {[%clk 0:00:22]} 35. Kc4 {[%clk 0:00:31]}  g4 {[%clk 0:00:23]} 36. a4 {[%clk 0:00:24]}  g3 {[%clk 0:00:23]} 37. a5 {[%clk 0:00:24]}  f2 {[%clk 0:00:22]} 38. Rf1 {[%clk 0:00:21]}  Bh3 {[%clk 0:00:21]} 39. Rb1 {[%clk 0:00:15]}  f1=Q {[%clk 0:00:19]} 40. Rxf1 {[%clk 0:00:15]}  Bxf1 {[%clk 0:00:20]} 41. Kc5 {[%clk 0:00:16]}  g2 {[%clk 0:00:17]} 42. Kxc6 {[%clk 0:00:16]}  Rd2 {[%clk 0:00:15]} 43. a6 {[%clk 0:00:16]}  Bxa6 {[%clk 0:00:14]} 44. Be3 {[%clk 0:00:11]}  Re2 {[%clk 0:00:13]} 45. Bc5 {[%clk 0:00:11]}  Re5 {[%clk 0:00:13]} 46. Ba7 {[%clk 0:00:10]}  Rg5 {[%clk 0:00:13]} 47. Bg1 {[%clk 0:00:10]}  Rxh5 {[%clk 0:00:13]} 48. Bd5 {[%clk 0:00:09]}  Bb7+ {[%clk 0:00:12]} 49. Kxb7 {[%clk 0:00:09]}  Rxd5 {[%clk 0:00:13]} 50. c4 {[%clk 0:00:09]}  Rd1 {[%clk 0:00:14]} 51. Be3 {[%clk 0:00:09]}  Bd4 {[%clk 0:00:14]} 52. Bxd4 {[%clk 0:00:09]}  Rxd4 {[%clk 0:00:15]} 53. c5 {[%clk 0:00:10]}  g1=Q {[%clk 0:00:16]} 54. c6 {[%clk 0:00:11]}  Rb4+ {[%clk 0:00:17]} 0-1


[Site "https://www.chess.com"]

[Event "Titled Tuesday Blitz May 23 Late 2023"]
[White "Danielyan, Vahe"]
[Black "Quispe Arteaga, Gabriel"]
[WhiteFideId "13304828"]
[BlackFideId "32059809"]
[WhiteElo "2423"]
[BlackElo "2274"]
[Result "0-1"]
[Round "06"]
[TimeControl "180+2"]
[Date "2023.05.23"]
[WhiteClock "0:01:12"]
[BlackClock "0:00:15"]

1. e4 {[%clk 0:03:00]}  c5 {[%clk 0:02:36]} 2. g3 {[%clk 0:03:00]}  g6 {[%clk 0:02:25]} 3. Bg2 {[%clk 0:02:59]}  Bg7 {[%clk 0:02:25]} 4. Ne2 {[%clk 0:03:00]}  Nc6 {[%clk 0:02:25]} 5. O-O {[%clk 0:02:58]}  d6 {[%clk 0:02:25]} 6. c3 {[%clk 0:02:58]}  Nf6 {[%clk 0:02:25]} 7. d4 {[%clk 0:02:58]}  O-O {[%clk 0:02:26]} 8. h3 {[%clk 0:02:57]}  cxd4 {[%clk 0:02:24]} 9. cxd4 {[%clk 0:02:58]}  e5 {[%clk 0:02:21]} 10. d5 {[%clk 0:02:57]}  Ne7 {[%clk 0:02:18]} 11. Nbc3 {[%clk 0:02:57]}  Bd7 {[%clk 0:02:17]} 12. Be3 {[%clk 0:02:57]}  a6 {[%clk 0:02:12]} 13. Qb3 {[%clk 0:02:56]}  b5 {[%clk 0:01:49]} 14. Rac1 {[%clk 0:02:56]}  h6 {[%clk 0:01:44]} 15. f4 {[%clk 0:02:55]}  exf4 {[%clk 0:01:40]} 16. gxf4 {[%clk 0:02:56]}  Nh5 {[%clk 0:01:38]} 17. Nd4 {[%clk 0:02:55]}  Rc8 {[%clk 0:01:30]} 18. Nce2 {[%clk 0:02:41]}  Kh7 {[%clk 0:01:17]} 19. Rxc8 {[%clk 0:02:38]}  Nxc8 {[%clk 0:01:15]} 20. Rc1 {[%clk 0:02:37]}  Nb6 {[%clk 0:01:15]} 21. Nc6 {[%clk 0:02:15]}  Bxc6 {[%clk 0:01:09]} 22. dxc6 {[%clk 0:02:02]}  Nc4 {[%clk 0:01:10]} 23. Rxc4 {[%clk 0:02:03]}  bxc4 {[%clk 0:01:09]} 24. Qxc4 {[%clk 0:02:04]}  Qc7 {[%clk 0:01:05]} 25. Nc3 {[%clk 0:01:56]}  Rc8 {[%clk 0:01:05]} 26. e5 {[%clk 0:01:53]}  dxe5 {[%clk 0:01:05]} 27. Nd5 {[%clk 0:01:53]}  Qxc6 {[%clk 0:01:00]} 28. Nf6+ {[%clk 0:01:53]}  Qxf6 {[%clk 0:00:58]} 29. Qxc8 {[%clk 0:01:53]}  exf4 {[%clk 0:00:58]} 30. Bc5 {[%clk 0:01:52]}  f3 {[%clk 0:00:55]} 31. Bf1 {[%clk 0:01:53]}  Qxb2 {[%clk 0:00:48]} 32. Qg4 {[%clk 0:01:51]}  Qxa2 {[%clk 0:00:36]} 33. Qxf3 {[%clk 0:01:50]}  Qe6 {[%clk 0:00:34]} 34. Bf2 {[%clk 0:01:46]}  a5 {[%clk 0:00:21]} 35. Bd3 {[%clk 0:01:46]}  Nf6 {[%clk 0:00:19]} 36. Kg2 {[%clk 0:01:44]}  Qd5 {[%clk 0:00:19]} 37. Qxd5 {[%clk 0:01:39]}  Nxd5 {[%clk 0:00:20]} 38. Bc4 {[%clk 0:01:39]}  Nf4+ {[%clk 0:00:18]} 39. Kg3 {[%clk 0:01:26]}  Ne6 {[%clk 0:00:18]} 40. Bb3 {[%clk 0:01:19]}  Be5+ {[%clk 0:00:17]} 41. Kf3 {[%clk 0:01:19]}  Kg7 {[%clk 0:00:16]} 42. Ke4 {[%clk 0:01:19]}  Bc3 {[%clk 0:00:16]} 43. h4 {[%clk 0:01:17]}  Bb4 {[%clk 0:00:15]} 44. Bg3 {[%clk 0:01:12]}  Nc5+ {[%clk 0:00:15]} 0-1


[Site "https://www.chess.com"]